fUSD/lending_fUSD_20240611
["ID","MTS","AMOUNT","RATE_DAILY","PERIOD"]
[329099019,1718103080290,-3324.68,0.00025479,2]
[329099020,1718103080301,-6862.43,0.00025479,2]
[329099021,1718103080312,-500.0,0.00025479,2]
[329099022,1718103080323,-1657.61,0.00025479,2]
[329099023,1718103080334,-895.86,0.00025479,2]
[329099024,1718103080345,-1072.91,0.00025479,2]
[329099025,1718103080356,-661.87,0.00025479,2]
[329099026,1718103080367,-2637.47,0.00025479,2]
[329099027,1718103080377,-4278.21,0.00025479,2]
[329099028,1718103080388,-3348.17,0.00025479,2]
[329099029,1718103080399,-18970.56,0.00025479,2]
[329099030,1718103080409,-500.0,0.00025479,2]
[329099031,1718103080419,-500.0,0.00025479,2]
[329099032,1718103080431,-882.16,0.00025479,2]
[329099033,1718103080442,-1295.93,0.00025479,2]
[329099034,1718103080453,-7023.77,0.00025479,2]
[329099035,1718103080464,-1205.47,0.00025479,2]
[329099036,1718103080474,-4001.26,0.00025479,2]
[329099037,1718103080485,-2822.61,0.00025479,2]
[329099038,1718103080496,-506.35,0.00025479,2]
[329099039,1718103080506,-4627.88,0.00025479,2]
[329099040,1718103080517,-4081.07,0.00025479,2]
[329099041,1718103080529,-548.15438441,0.00025479,2]
[329099042,1718103080539,-500.0,0.00025479,2]
[329099043,1718103080549,-531.05372653,0.00025479,2]
[329099044,1718103080560,-852.86,0.00025479,2]
[329099045,1718103080570,-3114.11,0.00025479,2]
[329099046,1718103080581,-6951.93,0.00025479,2]
[329099047,1718103080592,-5063.42,0.00025479,2]
[329099048,1718103080602,-500.0,0.00025479,2]
[329099049,1718103080612,-4311.49,0.00025479,2]
[329099050,1718103080623,-566.75,0.00025479,2]
[329099051,1718103080633,-558.29,0.00025479,2]
[329099052,1718103080643,-1344.65,0.00025479,2]
[329099053,1718103080654,-3798.71,0.00025479,2]
[329099054,1718103080664,-872.84,0.00025479,2]
[329099055,1718103080675,-1542.55,0.00025479,2]
[329099056,1718103080685,-744.77,0.00025479,2]
[329099057,1718103080696,-3626.02,0.00025479,2]
[329099058,1718103080707,-500.0,0.00025479,2]
[329099059,1718103080718,-500.0,0.00025479,2]
[329099060,1718103080731,-6942.7,0.00025479,2]
[329099061,1718103080743,-2450.87,0.00025479,2]
[329099062,1718103080754,-1960.82,0.00025479,2]
[329099063,1718103080765,-755.68,0.00025479,2]
[329099064,1718103080778,-4453.97,0.00025479,2]
[329099065,1718103080791,-2383.54,0.00025479,2]
[329099066,1718103080804,-791.5,0.00025479,2]
[329099067,1718103080815,-3124.99,0.00025479,2]
[329099068,1718103080827,-1191.11,0.00025479,2]
[329099069,1718103080839,-840.19,0.00025479,2]
[329099070,1718103080853,-5836.12,0.00025479,2]
[329099071,1718103080865,-2312.07,0.00025479,2]
[329099072,1718103080876,-500.0,0.00025479,2]
[329099073,1718103080887,-3576.14,0.00025479,2]
[329099074,1718103080898,-500.0,0.00025479,2]
[329099075,1718103080909,-500.0,0.00025479,2]
[329099076,1718103080922,-2101.15,0.00025479,2]
[329099077,1718103080932,-832.37,0.00025479,2]
[329099078,1718103080943,-1433.52,0.00025479,2]
[329099079,1718103080953,-545.76,0.00025479,2]
[329099080,1718103080963,-500.0,0.00025479,2]
[329099081,1718103080974,-972.32,0.00025479,2]
[329099082,1718103080988,-11542.35,0.00025479,2]
[329099083,1718103081000,-1776.98,0.00025479,2]
[329099084,1718103081012,-1230.55,0.00025479,2]
[329099085,1718103081026,-500.0,0.00025479,2]
[329099086,1718103081038,-1676.04,0.00025479,2]
[329099087,1718103081050,-1682.27,0.00025479,2]
[329099088,1718103081062,-11356.85,0.00025479,2]
[329099089,1718103081075,-345.19574,0.00025479,7]
[329099090,1718103081088,-345.19574,0.00025479,7]
[329099091,1718103081100,-345.19574,0.00025479,7]
[329099092,1718103081112,-345.19574,0.00025479,7]
[329099093,1718103081123,-345.19574,0.00025479,7]
[329099094,1718103081134,-345.19574,0.00025479,7]
[329099095,1718103081144,-345.19574,0.00025479,7]
[329099096,1718103081160,-345.19574,0.00025479,7]
[329099097,1718103081171,-345.19574,0.00025479,7]
[329099098,1718103081181,-345.19574,0.00025479,7]
[329099099,1718103081191,-345.19574,0.00025479,7]
[329099100,1718103081203,-345.19574,0.00025479,7]
[329099101,1718103081213,-345.19574,0.00025479,7]
[329099102,1718103081224,-345.19574,0.00025479,7]
[329099103,1718103081235,-345.19574,0.00025479,7]
[329099104,1718103081246,-345.19574,0.00025479,7]
[329099105,1718103081257,-345.19574,0.00025479,7]
[329099106,1718103081268,-345.19574,0.00025479,7]
[329099107,1718103081278,-345.19574,0.00025479,7]
[329099108,1718103081289,-345.195737,0.00025479,7]
[329099109,1718103081301,-295.36,0.00025596,15]
[329099110,1718103081314,-150.5,0.00025606,15]
[329099111,1718103081326,-151.0,0.00025616,7]
[329099112,1718103081337,-151.0,0.00025616,7]
[329099113,1718103081347,-241.516731,0.00025616,7]
[329099114,1718103081358,-151.0,0.00025616,7]
[329099115,1718103081368,-241.432715,0.00025616,7]
[329099116,1718103081378,-151.0,0.00025616,7]
[329099117,1718103081389,-241.516731,0.00025616,7]
[329099118,1718103081399,-250.446031,0.00025616,7]
[329099119,1718103081410,-1125.5,0.00025616,2]
[329099120,1718103081420,-250.446031,0.00025616,7]
[329099121,1718103081430,-242.407051,0.00025616,7]
[329099122,1718103081440,-242.407051,0.00025616,7]
[329099123,1718103081451,-698.65,0.00025616,2]
[329099124,1718103081462,-829.38,0.00025616,2]
[329099125,1718103081472,-400.861186,0.00025616,7]
[329099126,1718103081483,-400.861186,0.00025616,7]
[329099127,1718103081494,-532.10676821,0.00025616,2]
[329099128,1718103081505,-1224.59,0.00025616,2]
[329099129,1718103081516,-1012.23,0.00025616,2]
[329099130,1718103081530,-500.0,0.00025616,2]
[329099131,1718103081540,-527.09,0.00025616,2]
[329099132,1718103081550,-719.45,0.00025616,2]
[329099133,1718103081561,-500.0,0.00025616,2]
[329099134,1718103081571,-1460.05,0.00025616,2]
[329099135,1718103081582,-1289.19,0.00025616,2]
[329099136,1718103081592,-151.0,0.00025616,7]
[329099137,1718103081603,-500.0,0.00025616,2]
[329099138,1718103081614,-1187.92,0.00025616,2]
[329099139,1718103081625,-691.71,0.00025616,2]
[329099140,1718103081636,-500.0,0.00025616,2]
[329099141,1718103081647,-765.745762,0.00025616,7]
[329099142,1718103081657,-1589.91,0.00025616,2]
[329099143,1718103081667,-765.745762,0.00025616,7]
[329099144,1718103081678,-569.17,0.00025616,2]
[329099145,1718103081688,-214.642249,0.00025616,7]
[329099146,1718103081699,-500.0,0.00025616,2]
[329099147,1718103081710,-214.642249,0.00025616,7]
[329099148,1718103081720,-500.0,0.00025616,2]
[329099149,1718103081731,-151.0,0.00025616,7]
[329099150,1718103081742,-1922.15,0.00025616,2]
[329099151,1718103081753,-1006.207428,0.00025616,7]
[329099152,1718103081763,-1030.13,0.00025616,2]
[329099153,1718103081774,-1006.207428,0.00025616,7]
[329099154,1718103081784,-500.0,0.00025616,2]
[329099155,1718103081795,-1616.22,0.00025616,2]
[329099156,1718103081806,-3561.35,0.00025616,2]
[329099157,1718103081816,-628.19,0.00025616,2]
[329099158,1718103081826,-447.143922,0.00025616,7]
[329099159,1718103081837,-447.143922,0.00025616,7]
[329099160,1718103081847,-372.050106,0.00025616,7]
[329099161,1718103081857,-500.0,0.00025616,2]
[329099162,1718103081868,-500.0,0.00025616,2]
[329099163,1718103081879,-372.050106,0.00025616,7]
[329099164,1718103081890,-500.0,0.00025616,2]
[329099165,1718103081901,-752.11,0.00025616,2]
[329099166,1718103081913,-655.83,0.00025616,2]
[329099167,1718103081923,-2058.77,0.00025616,2]
[329099168,1718103081933,-2260.46,0.00025616,2]
[329099169,1718103081946,-1588.0,0.00025616,2]
[329099170,1718103081960,-1174.18,0.00025616,2]
[329099171,1718103081970,-500.0,0.00025616,2]
[329099172,1718103081981,-236.590907,0.00025616,7]
[329099173,1718103081994,-236.590907,0.00025616,7]
[329099174,1718103082004,-1694.76,0.00025616,2]
[329099175,1718103082015,-803.31,0.00025616,2]
[329099176,1718103082026,-296.518875,0.00025616,7]
[329099177,1718103082037,-296.518875,0.00025616,7]
[329099178,1718103082047,-995.49,0.00025616,2]
[329099179,1718103082061,-500.0,0.00025616,2]
[329099180,1718103082073,-1020.06,0.00025616,2]
[329099181,1718103082084,-860.63,0.00025616,2]
[329099182,1718103082096,-473.378943,0.00025616,7]
[329099183,1718103082107,-151.0,0.00025616,7]
[329099184,1718103082117,-599.38,0.00025616,2]
[329099185,1718103082128,-473.378943,0.00025616,7]
[329099186,1718103082138,-940.8,0.00025616,2]
[329099187,1718103082148,-500.0,0.00025616,2]
[329099188,1718103082161,-1420.19,0.00025616,2]
[329099189,1718103082172,-2225.45,0.00025616,2]
[329099190,1718103082182,-558.97301073,0.00025616,2]
[329099191,1718103082193,-2026.42,0.00025616,2]
[329099192,1718103082203,-2906.52,0.00025616,2]
[329099193,1718103082213,-500.0,0.00025616,2]
[329099194,1718103082223,-163.288509,0.00025616,7]
[329099195,1718103082234,-163.288509,0.00025616,7]
[329099196,1718103082247,-500.0,0.00025616,2]
[329099197,1718103082258,-500.0,0.00025616,2]
[329099198,1718103082268,-816.843791,0.00025616,7]
[329099199,1718103082281,-500.0,0.00025616,2]
[329099200,1718103082292,-500.0,0.00025616,2]
[329099201,1718103082303,-500.0,0.00025616,2]
[329099202,1718103082313,-816.843791,0.00025616,7]
[329099203,1718103082324,-500.0,0.00025616,2]
[329099204,1718103082335,-500.0,0.00025616,2]
[329099205,1718103082345,-821.93,0.00025616,2]
[329099206,1718103082357,-714.51,0.00025616,2]
[329099207,1718103082368,-500.0,0.00025616,2]
[329099208,1718103082378,-576.65,0.00025616,2]
[329099209,1718103082388,-500.0,0.00025616,2]
[329099210,1718103082398,-697.03,0.00025616,2]
[329099211,1718103082408,-500.0,0.00025616,2]
[329099212,1718103082418,-1049.071361,0.00025616,7]
[329099213,1718103082428,-520.77,0.00025616,2]
[329099214,1718103082440,-500.0,0.00025616,2]
[329099215,1718103082451,-500.0,0.00025616,2]
[329099216,1718103082462,-1049.071361,0.00025616,7]
[329099217,1718103082472,-644.63,0.00025616,2]
[329099218,1718103082483,-2402.32,0.00025616,2]
[329099219,1718103082494,-500.0,0.00025616,2]
[329099220,1718103082504,-500.0,0.00025616,2]
[329099221,1718103082515,-500.0,0.00025616,2]
[329099222,1718103082529,-500.0,0.00025616,2]
[329099223,1718103082538,-1518.18,0.00025616,2]
[329099224,1718103082549,-500.0,0.00025616,2]
[329099225,1718103082559,-6631.54,0.00025616,2]
[329099226,1718103082570,-500.0,0.00025616,2]
[329099227,1718103082580,-500.0,0.00025616,2]
[329099228,1718103082590,-3646.17,0.00025616,2]
[329099229,1718103082603,-1046.79,0.00025616,2]
[329099230,1718103082613,-595.03,0.00025616,2]
[329099231,1718103082623,-500.0,0.00025616,2]
[329099232,1718103082634,-678.28,0.00025616,2]
[329099233,1718103082644,-500.0,0.00025616,2]
[329099234,1718103082654,-500.0,0.00025616,2]
[329099235,1718103082665,-3246.46,0.00025616,2]
[329099236,1718103082676,-500.0,0.00025616,2]
[329099237,1718103082686,-1782.21,0.00025616,2]
[329099238,1718103082697,-500.0,0.00025616,2]
[329099239,1718103082707,-500.0,0.00025616,2]
[329099240,1718103082717,-1863.65,0.00025616,2]
[329099241,1718103082727,-986.96,0.00025616,2]
[329099242,1718103082738,-60128.61,0.00025616,2]
[329099243,1718103082749,-590.58,0.00025616,2]
[329099244,1718103082759,-704.25,0.00025616,2]
[329099245,1718103082772,-500.0,0.00025616,2]
[329099246,1718103082785,-3650.9,0.00025616,2]
[329099247,1718103082964,-1160.72,0.00025616,2]
[329099248,1718103082977,-500.0,0.00025616,2]
[329099249,1718103082992,-16093.83,0.00025616,2]
[329099250,1718103083003,-3600.94,0.00025616,2]
[329099251,1718103083015,-500.0,0.00025616,2]
[329099252,1718103083030,-719.54,0.00025616,2]
[329099253,1718103083041,-1052.76,0.00025616,2]
[329099254,1718103083052,-2155.0,0.00025616,2]
[329099255,1718103083064,-6544.77,0.00025616,2]
[329099256,1718103083075,-740.04,0.00025616,2]
[329099257,1718103083085,-1888.46,0.00025616,2]
[329099258,1718103083096,-2806.67,0.00025616,2]
[329099259,1718103083107,-260.19319326,0.00025616,2]
[329099260,1718103083117,-1554.02,0.00025616,2]
[329099261,1718103083127,-500.0,0.00025616,2]
[329099262,1718103083138,-1798.56,0.00025616,2]
[329099263,1718103083148,-5181.24,0.00025616,2]
[329099264,1718103083165,-500.0,0.00025616,2]
[329099265,1718103083175,-648.83,0.00025616,2]
[329099266,1718103083186,-1550.43,0.00025616,2]
[329099267,1718103083197,-556.8,0.00025616,2]
[329099268,1718103083207,-5415.76,0.00025616,2]
[329099269,1718103083218,-2910.91,0.00025616,2]
[329099270,1718103083228,-2813.33,0.00025616,2]
[329099271,1718103083238,-5210.45,0.00025616,2]
[329099272,1718103083248,-2614.87,0.00025616,2]
[329099273,1718103083258,-2508.57,0.00025616,2]
[329099274,1718103083269,-524.87,0.00025616,2]
[329099275,1718103083281,-1490.4,0.00025616,2]
[329099276,1718103083292,-500.0,0.00025616,2]
[329099277,1718103083302,-4575.68,0.00025616,2]
[329099278,1718103083313,-1385.62,0.00025616,2]
[329099279,1718103083323,-23273.76,0.00025616,2]
[329099280,1718103083334,-2161.49,0.00025616,2]
[329099281,1718103083346,-3397.46,0.00025616,2]
[329099282,1718103083356,-836.93,0.00025616,2]
[329099283,1718103083368,-500.0,0.00025616,2]
[329099284,1718103083378,-809.74,0.00025616,2]
[329099285,1718103083388,-500.0,0.00025616,2]
[329099286,1718103083399,-4475.39,0.00025616,2]
[329099287,1718103083411,-1793.26,0.00025616,2]
[329099288,1718103083422,-500.0,0.00025616,2]
[329099289,1718103083432,-2264.18,0.00025616,2]
[329099290,1718103083443,-1991.54,0.00025616,2]
[329099291,1718103083453,-592.32,0.00025616,2]
[329099292,1718103083463,-1014.4,0.00025616,2]
[329099293,1718103083474,-516.68,0.00025616,2]
[329099294,1718103083485,-881.73,0.00025616,2]
[329099295,1718103083498,-2542.46,0.00025616,2]
[329099296,1718103083509,-6118.86,0.00025616,2]
[329099297,1718103083522,-4350.15,0.00025616,2]
[329099298,1718103083533,-12384.13,0.00025616,2]
[329099299,1718103083543,-500.0,0.00025616,2]
[329099300,1718103083554,-1210.98,0.00025616,2]
[329099301,1718103083565,-625.27,0.00025616,2]
[329099302,1718103083576,-661.12,0.00025616,2]
[329099303,1718103083587,-500.0,0.00025616,2]
[329099304,1718103083599,-500.48,0.00025616,2]
[329099305,1718103083610,-5976.04,0.00025616,2]
[329099306,1718103083621,-683.97,0.00025616,2]
[329099307,1718103083631,-1301.38,0.00025616,2]
[329099308,1718103083645,-518.11,0.00025616,2]
[329099309,1718103083656,-500.0,0.00025616,2]
[329099310,1718103083667,-1440.79,0.00025616,2]
[329099311,1718103083680,-20715.74,0.00025616,2]
[329099312,1718103083691,-7241.55,0.00025616,2]
[329099313,1718103083703,-4364.25,0.00025616,2]
[329099314,1718103083715,-4364.33,0.00025616,2]
[329099315,1718103083727,-1770.11,0.00025616,2]
[329099316,1718103083738,-8941.42,0.00025616,2]
[329099317,1718103083748,-1826.27,0.00025616,2]
[329099318,1718103083759,-572.84,0.00025616,2]
[329099319,1718103083772,-994.59,0.00025616,2]
[329099320,1718103083782,-542.08,0.00025616,2]
[329099321,1718103083793,-1968.25,0.00025616,2]
[329099322,1718103083803,-500.0,0.00025616,2]
[329099323,1718103083815,-2643.2,0.00025616,2]
[329099324,1718103083826,-554.66,0.00025616,2]
[329099325,1718103083836,-8077.47,0.00025616,2]
[329099326,1718103083847,-817.34,0.00025616,2]
[329099327,1718103083858,-2323.66,0.00025616,2]
[329099328,1718103083869,-500.0,0.00025616,2]
[329099329,1718103083880,-601.59,0.00025616,2]
[329099330,1718103083891,-500.0,0.00025616,2]
[329099331,1718103083901,-500.0,0.00025616,2]
[329099332,1718103083912,-500.0,0.00025616,2]
[329099333,1718103083923,-1573.7,0.00025616,2]
[329099334,1718103083934,-8616.33,0.00025616,2]
[329099335,1718103083946,-500.0,0.00025616,2]
[329099336,1718103083958,-3147.86,0.00025616,2]
[329099337,1718103083969,-4497.21,0.00025616,2]
[329099338,1718103083984,-500.0,0.00025616,2]
[329099339,1718103083996,-2963.67,0.00025616,2]
[329099340,1718103084006,-698.88,0.00025616,2]
[329099341,1718103084016,-591.74,0.00025616,2]
[329099342,1718103084029,-500.0,0.00025616,2]
[329099343,1718103084039,-784.8,0.00025616,2]
[329099344,1718103084050,-4263.91,0.00025616,2]
[329099345,1718103084063,-1163.96,0.00025616,2]
[329099346,1718103084073,-1298.72,0.00025616,2]
[329099347,1718103084083,-2951.75,0.00025616,2]
[329099348,1718103084094,-1048.93,0.00025616,2]
[329099349,1718103084105,-1034.57,0.00025616,2]
[329099350,1718103084116,-4183.7,0.00025616,2]
[329099351,1718103084126,-2041.21,0.00025616,2]
[329099352,1718103084137,-742.6,0.00025616,2]
[329099353,1718103084148,-500.0,0.00025616,2]
[329099354,1718103084164,-5992.83,0.00025616,2]
[329099355,1718103084174,-500.0,0.00025616,2]
[329099356,1718103084185,-500.0,0.00025616,2]
[329099357,1718103084196,-3291.99,0.00025616,2]
[329099358,1718103084207,-500.0,0.00025616,2]
[329099359,1718103084218,-1089.97,0.00025616,2]
[329099360,1718103084229,-7933.92,0.00025616,2]
[329099361,1718103084239,-3324.68,0.00025616,2]
[329099362,1718103084250,-6862.43,0.00025616,2]
[329099363,1718103084260,-500.0,0.00025616,2]
[329099364,1718103084273,-1657.61,0.00025616,2]
[329099365,1718103084284,-895.86,0.00025616,2]
[329099366,1718103084295,-1072.91,0.00025616,2]
[329099367,1718103084305,-661.87,0.00025616,2]
[329099368,1718103084315,-2637.47,0.00025616,2]
[329099369,1718103084325,-3348.17,0.00025616,2]
[329099370,1718103084336,-4278.21,0.00025616,2]
[329099371,1718103084347,-7487.34145162,0.00025616,2]
[329099372,1718103086452,-524.5898961,0.00024657,2]
[329099373,1718103086463,-500.0,0.00024657,2]
[329099374,1718103086474,-1002.41801191,0.00024657,7]
[329099375,1718103086487,-3242.18482909,0.00024657,7]
[329099376,1718103086497,-981.11387354,0.00024657,2]
[329099377,1718103086509,-4244.602841,0.00024657,7]
[329099378,1718103086519,-843.95,0.00024657,2]
[329099379,1718103086531,-447.97552504,0.00024794,2]
[329099380,1718103086543,-4244.602841,0.00024794,7]
[329099381,1718103086553,-4244.602841,0.00024794,7]
[329099382,1718103086564,-4244.602841,0.00024794,7]
[329099383,1718103086574,-151.21703733,0.00024799,2]
[329099384,1718103086586,-500.0,0.00024931,2]
[329099385,1718103086598,-2862.17,0.00024931,2]
[329099386,1718103086610,-4244.602841,0.00024931,7]
[329099387,1718103086621,-4244.602841,0.00024931,7]
[329099388,1718103086632,-500.0,0.00025068,2]
[329099389,1718103086644,-500.0,0.00025068,2]
[329099390,1718103086655,-2862.17,0.00025068,2]
[329099391,1718103086666,-4244.602841,0.00025068,7]
[329099392,1718103086677,-4244.602841,0.00025068,7]
[329099393,1718103086688,-500.0,0.00025205,2]
[329099394,1718103086699,-500.0,0.00025205,2]
[329099395,1718103086710,-2862.17,0.00025205,2]
[329099396,1718103086721,-500.0,0.00025342,2]
[329099397,1718103086731,-500.0,0.00025342,2]
[329099398,1718103086742,-1381.38591,0.00025342,2]
[329099399,1718103086756,-1480.78409,0.00025342,2]
[329099400,1718103086766,-500.0,0.00025479,2]
[329099401,1718103086777,-500.0,0.00025479,2]
[329099402,1718103086787,-2862.17,0.00025479,2]
[329099403,1718103086798,-11483.21854838,0.00025616,2]
[329099404,1718103086809,-500.0,0.00025616,2]
[329099405,1718103086819,-500.0,0.00025616,2]
[329099406,1718103086831,-882.16,0.00025616,2]
[329099407,1718103086843,-1295.93,0.00025616,2]
[329099408,1718103086854,-7023.77,0.00025616,2]
[329099409,1718103086865,-1205.47,0.00025616,2]
[329099410,1718103086875,-4001.26,0.00025616,2]
[329099411,1718103086886,-2822.61,0.00025616,2]
[329099412,1718103086896,-506.35,0.00025616,2]
[329099413,1718103086907,-4627.88,0.00025616,2]
[329099414,1718103086918,-4081.07,0.00025616,2]
[329099415,1718103086929,-500.0,0.00025616,2]
[329099416,1718103086940,-852.86,0.00025616,2]
[329099417,1718103086952,-3114.11,0.00025616,2]
[329099418,1718103086963,-6951.93,0.00025616,2]
[329099419,1718103086975,-5063.42,0.00025616,2]
[329099420,1718103086989,-500.0,0.00025616,2]
[329099421,1718103086999,-4311.49,0.00025616,2]
[329099422,1718103087010,-558.29,0.00025616,2]
[329099423,1718103087021,-566.75,0.00025616,2]
[329099424,1718103087033,-1344.65,0.00025616,2]
[329099425,1718103087045,-3798.71,0.00025616,2]
[329099426,1718103087058,-872.84,0.00025616,2]
[329099427,1718103087070,-1542.55,0.00025616,2]
[329099428,1718103087081,-744.77,0.00025616,2]
[329099429,1718103087092,-3626.02,0.00025616,2]
[329099430,1718103087103,-500.0,0.00025616,2]
[329099431,1718103087114,-500.0,0.00025616,2]
[329099432,1718103087124,-6942.7,0.00025616,2]
[329099433,1718103087135,-2450.87,0.00025616,2]
[329099434,1718103087146,-1960.82,0.00025616,2]
[329099435,1718103087161,-755.68,0.00025616,2]
[329099436,1718103087172,-4453.97,0.00025616,2]
[329099437,1718103087184,-2383.54,0.00025616,2]
[329099438,1718103087197,-791.5,0.00025616,2]
[329099439,1718103087208,-3124.99,0.00025616,2]
[329099440,1718103087218,-1191.11,0.00025616,2]
[329099441,1718103087229,-840.19,0.00025616,2]
[329099442,1718103087240,-5836.12,0.00025616,2]
[329099443,1718103087251,-2312.07,0.00025616,2]
[329099444,1718103087261,-500.0,0.00025616,2]
[329099445,1718103087275,-3576.14,0.00025616,2]
[329099446,1718103087285,-308.04239583,0.00025616,2]
[329099447,1718103087295,-500.0,0.00025616,2]
[329099448,1718103087306,-2101.15,0.00025616,2]
[329099449,1718103087316,-832.37,0.00025616,2]
[329099450,1718103087326,-1433.52,0.00025616,2]
[329099451,1718103087337,-545.76,0.00025616,2]
[329099452,1718103087348,-500.0,0.00025616,2]
[329099453,1718103087358,-972.32,0.00025616,2]
[329099454,1718103087369,-11542.35,0.00025616,2]
[329099455,1718103087380,-1776.98,0.00025616,2]
[329099456,1718103087392,-1230.55,0.00025616,2]
[329099457,1718103087403,-500.0,0.00025616,2]
[329099458,1718103087415,-1676.04,0.00025616,2]
[329099459,1718103087426,-1682.27,0.00025616,2]
[329099460,1718103087437,-11356.85,0.00025616,2]
[329099461,1718103087448,-500.0,0.00025616,2]
[329099462,1718103087460,-510.20853128,0.00025616,2]
[329099463,1718103087471,-2862.17,0.00025616,2]
[329099464,1718103087482,-8488.15909421,0.00025639,2]
[329099465,1718103087494,-2029.88005737,0.00025653,2]
[329099466,1718103087505,-418.78592854,0.00025653,2]
[329099467,1718103087516,-851.06,0.00025671,2]
[329099468,1718103087530,-417.53,0.00025671,2]
[329099469,1718103087541,-417.53,0.00025671,2]
[329099470,1718103087552,-851.06,0.00025671,2]
[329099471,1718103087563,-851.06,0.00025671,2]
[329099472,1718103087573,-417.53,0.00025671,2]
[329099473,1718103087583,-417.53,0.00025671,2]
[329099474,1718103087593,-851.06,0.00025671,2]
[329099475,1718103087603,-851.06,0.00025671,2]
[329099476,1718103087613,-417.53,0.00025671,2]
[329099477,1718103087623,-687.68,0.00025671,2]
[329099478,1718103087633,-417.53,0.00025671,2]
[329099479,1718103087643,-417.53,0.00025671,2]
[329099480,1718103087654,-414.95,0.00025671,2]
[329099481,1718103087664,-151.0,0.00025753,7]
[329099482,1718103087674,-151.0,0.00025753,7]
[329099483,1718103087685,-151.0,0.00025753,7]
[329099484,1718103087695,-151.0,0.00025753,7]
[329099485,1718103087707,-151.0,0.00025753,7]
[329099486,1718103087717,-151.0,0.00025753,7]
[329099487,1718103087727,-151.0,0.00025753,7]
[329099488,1718103087738,-210.686972,0.00025753,7]
[329099489,1718103087749,-1224.59,0.00025753,2]
[329099490,1718103087759,-1012.23,0.00025753,2]
[329099491,1718103087770,-500.0,0.00025753,2]
[329099492,1718103087783,-527.09,0.00025753,2]
[329099493,1718103087793,-151.0,0.00025753,7]
[329099494,1718103087803,-151.0,0.00025753,7]
[329099495,1718103087813,-719.45,0.00025753,2]
[329099496,1718103087824,-500.0,0.00025753,2]
[329099497,1718103087835,-1460.05,0.00025753,2]
[329099498,1718103087847,-1289.19,0.00025753,2]
[329099499,1718103087857,-151.0,0.00025753,7]
[329099500,1718103087868,-500.0,0.00025753,2]
[329099501,1718103087879,-1187.92,0.00025753,2]
[329099502,1718103087890,-691.71,0.00025753,2]
[329099503,1718103087901,-500.0,0.00025753,2]
[329099504,1718103087912,-765.745762,0.00025753,7]
[329099505,1718103087922,-1589.91,0.00025753,2]
[329099506,1718103087933,-765.745762,0.00025753,7]
[329099507,1718103087944,-569.17,0.00025753,2]
[329099508,1718103087954,-500.0,0.00025753,2]
[329099509,1718103088129,-214.642249,0.00025753,7]
[329099510,1718103088142,-214.642249,0.00025753,7]
[329099511,1718103088156,-500.0,0.00025753,2]
[329099512,1718103088169,-151.0,0.00025753,7]
[329099513,1718103088181,-1922.15,0.00025753,2]
[329099514,1718103088191,-1006.207428,0.00025753,7]
[329099515,1718103088203,-1030.13,0.00025753,2]
[329099516,1718103088215,-1006.207428,0.00025753,7]
[329099517,1718103088227,-500.0,0.00025753,2]
[329099518,1718103088237,-1616.22,0.00025753,2]